[Event "*** Titled Tuesday Blitz"]
[Site "Chess.com"]
[Date "2020.10.20"]
[Round "4"]
[White "MikeSailer"]
[Black "kasparicy"]
[Result "1/2-1/2"]
[WhiteElo "2110"]
[BlackElo "2372"]
[TimeControl "180+1"]
[EndTime "10:42:15 PDT"]
[Termination "Game drawn - insufficient material"]

1. d4 {[%clk 0:03:00.1]} 1... f5 {[%clk 0:02:51.3]} 2. e4 {[%clk 0:02:58.3]}
2... fxe4 {[%clk 0:02:50.7]} 3. Nc3 {[%clk 0:02:57.5]} 3... Nf6 {[%clk
0:02:51.1]} 4. Bg5 {[%clk 0:02:56.6]} 4... Nc6 {[%clk 0:02:48.9]} 5. d5 {[%clk
0:02:55.2]} 5... Ne5 {[%clk 0:02:46.8]} 6. Qd4 {[%clk 0:02:54.9]} 6... Nf7
{[%clk 0:02:41.6]} 7. Bxf6 {[%clk 0:02:54.1]} 7... exf6 {[%clk 0:02:41.8]} 8.
Nxe4 {[%clk 0:02:47]} 8... Bd6 {[%clk 0:02:30.1]} 9. Nxd6+ {[%clk 0:02:38.2]}
9... Nxd6 {[%clk 0:02:29.2]} 10. O-O-O {[%clk 0:02:35.9]} 10... O-O {[%clk
0:02:29.3]} 11. Bd3 {[%clk 0:02:32.6]} 11... a6 {[%clk 0:02:27.6]} 12. Qh4
{[%clk 0:02:14.1]} 12... f5 {[%clk 0:02:27]} 13. Qxd8 {[%clk 0:02:04.4]} 13...
Rxd8 {[%clk 0:02:27.9]} 14. Nf3 {[%clk 0:02:04.9]} 14... b5 {[%clk 0:02:27.9]}
15. Rhe1 {[%clk 0:01:55.6]} 15... Bb7 {[%clk 0:02:27.4]} 16. Re5 {[%clk
0:01:21.2]} 16... Re8 {[%clk 0:02:11.7]} 17. Rde1 {[%clk 0:01:11.2]} 17... g6
{[%clk 0:02:11.2]} 18. b3 {[%clk 0:01:03.2]} 18... Rxe5 {[%clk 0:01:58.3]} 19.
Rxe5 {[%clk 0:01:02.5]} 19... Kf7 {[%clk 0:01:58.5]} 20. c4 {[%clk 0:01:01.3]}
20... bxc4 {[%clk 0:01:53.9]} 21. bxc4 {[%clk 0:01:00.7]} 21... Kf6 {[%clk
0:01:53.3]} 22. h3 {[%clk 0:00:48.6]} 22... a5 {[%clk 0:01:51.8]} 23. g4 {[%clk
0:00:48]} 23... fxg4 {[%clk 0:01:45.8]} 24. hxg4 {[%clk 0:00:47.4]} 24... Ba6
{[%clk 0:01:46]} 25. g5+ {[%clk 0:00:41.3]} 25... Kf7 {[%clk 0:01:45.6]} 26. Nd2
{[%clk 0:00:35.3]} 26... Rb8 {[%clk 0:01:38.5]} 27. Kc2 {[%clk 0:00:32.7]} 27...
Nb7 {[%clk 0:00:32.9]} 28. Ne4 {[%clk 0:00:24.5]} 28... Rh8 {[%clk 0:00:29.7]}
29. c5 {[%clk 0:00:22]} 29... Bxd3+ {[%clk 0:00:27.4]} 30. Kxd3 {[%clk
0:00:21.4]} 30... h5 {[%clk 0:00:28]} 31. d6 {[%clk 0:00:16.4]} 31... cxd6
{[%clk 0:00:25.1]} 32. cxd6 {[%clk 0:00:16.7]} 32... Re8 {[%clk 0:00:19.7]} 33.
Rxe8 {[%clk 0:00:12.4]} 33... Kxe8 {[%clk 0:00:20.6]} 34. Nf6+ {[%clk
0:00:11.7]} 34... Kf7 {[%clk 0:00:18.6]} 35. Kc4 {[%clk 0:00:11.9]} 35... Ke6
{[%clk 0:00:17.1]} 36. Kb5 {[%clk 0:00:10]} 36... h4 {[%clk 0:00:16.7]} 37. Ng4
{[%clk 0:00:09.1]} 37... Kxd6 {[%clk 0:00:15.6]} 38. Kb6 {[%clk 0:00:08.5]}
38... Nc5 {[%clk 0:00:13.5]} 39. Kxa5 {[%clk 0:00:09]} 39... Nd3 {[%clk
0:00:13.5]} 40. a4 {[%clk 0:00:07.9]} 40... h3 {[%clk 0:00:13.8]} 41. Kb6 {[%clk
0:00:06.5]} 41... Nb2 {[%clk 0:00:10.8]} 42. a5 {[%clk 0:00:06.9]} 42... Nc4+
{[%clk 0:00:11.3]} 43. Kb5 {[%clk 0:00:07.5]} 43... Nxa5 {[%clk 0:00:11.9]} 44.
Kxa5 {[%clk 0:00:08]} 44... Kd5 {[%clk 0:00:12.8]} 45. Kb4 {[%clk 0:00:07.3]}
45... Ke4 {[%clk 0:00:13.3]} 46. Kc5 {[%clk 0:00:06.6]} 46... Kf3 {[%clk
0:00:13.8]} 47. Nh2+ {[%clk 0:00:05.2]} 47... Kxf2 {[%clk 0:00:14.2]} 48. Kd6
{[%clk 0:00:03.6]} 48... Kg2 {[%clk 0:00:14.4]} 49. Ng4 {[%clk 0:00:03.9]} 49...
Kg3 {[%clk 0:00:14.4]} 50. Ne3 {[%clk 0:00:03.3]} 50... Kf4 {[%clk 0:00:14.5]}
51. Nf1 {[%clk 0:00:03.6]} 51... Kxg5 {[%clk 0:00:14.8]} 52. Kxd7 {[%clk
0:00:04.4]} 52... Kg4 {[%clk 0:00:15.2]} 53. Ke6 {[%clk 0:00:05.2]} 53... Kf3
{[%clk 0:00:15.6]} 54. Kf6 {[%clk 0:00:05.8]} 54... Kg2 {[%clk 0:00:13.4]} 55.
Ne3+ {[%clk 0:00:06.2]} 55... Kg1 {[%clk 0:00:13.6]} 56. Ng4 {[%clk 0:00:06.5]}
56... h2 {[%clk 0:00:13.3]} 57. Nxh2 {[%clk 0:00:06.8]} 57... Kxh2 {[%clk
0:00:14.2]} 58. Kxg6 {[%clk 0:00:07.6]} 1/2-1/2

[Event "*** Titled Tuesday Blitz"]
[Site "Chess.com"]
[Date "2020.10.20"]
[Round "4"]
[White "Ermito2020"]
[Black "Tenamu"]
[Result "1-0"]
[WhiteElo "2642"]
[BlackElo "2411"]
[TimeControl "180+1"]
[EndTime "10:42:16 PDT"]
[Termination "Ermito2020 won by resignation"]

1. e4 {[%clk 0:03:00.9]} 1... e6 {[%clk 0:02:59.9]} 2. d4 {[%clk 0:03:00]} 2...
d5 {[%clk 0:03:00.5]} 3. Nc3 {[%clk 0:03:00.6]} 3... Nf6 {[%clk 0:03:00.1]} 4.
e5 {[%clk 0:03:00.8]} 4... Nfd7 {[%clk 0:02:59.9]} 5. f4 {[%clk 0:03:01.5]} 5...
c5 {[%clk 0:02:59.5]} 6. Nf3 {[%clk 0:03:02.2]} 6... Nc6 {[%clk 0:02:59.6]} 7.
Be3 {[%clk 0:03:02.8]} 7... Qb6 {[%clk 0:02:59.3]} 8. Na4 {[%clk 0:03:01.8]}
8... Qa5+ {[%clk 0:02:59.2]} 9. c3 {[%clk 0:03:01.9]} 9... b6 {[%clk 0:02:59.8]}
10. a3 {[%clk 0:02:56.5]} 10... c4 {[%clk 0:02:55.4]} 11. b4 {[%clk 0:02:47.7]}
11... cxb3 {[%clk 0:02:54.2]} 12. Qxb3 {[%clk 0:02:47.2]} 12... Ba6 {[%clk
0:02:53.8]} 13. Kf2 {[%clk 0:02:22.8]} 13... Rc8 {[%clk 0:02:50.4]} 14. Bd2
{[%clk 0:02:05]} 14... Bxf1 {[%clk 0:02:44.3]} 15. Rhxf1 {[%clk 0:02:05.8]}
15... b5 {[%clk 0:02:34.3]} 16. Nb2 {[%clk 0:02:02.6]} 16... Nb6 {[%clk
0:02:32]} 17. Qc2 {[%clk 0:01:11.9]} 17... Qa6 {[%clk 0:02:29.2]} 18. Kg1 {[%clk
0:01:05.6]} 18... Be7 {[%clk 0:02:29.2]} 19. f5 {[%clk 0:01:05]} 19... Kd7
{[%clk 0:02:27.1]} 20. Qd3 {[%clk 0:00:52.5]} 20... Na5 {[%clk 0:02:22.9]} 21.
Bg5 {[%clk 0:00:41.4]} 21... Nac4 {[%clk 0:02:15.4]} 22. Nxc4 {[%clk 0:00:41.1]}
22... bxc4 {[%clk 0:02:14.3]} 23. Qb1 {[%clk 0:00:40.6]} 23... Rce8 {[%clk
0:02:11.9]} 24. Bxe7 {[%clk 0:00:38.5]} 24... Rxe7 {[%clk 0:02:12.8]} 25. fxe6+
{[%clk 0:00:32.5]} 25... fxe6 {[%clk 0:02:12.3]} 26. Ng5 {[%clk 0:00:33.1]}
26... h6 {[%clk 0:02:10.2]} 27. Nf7 {[%clk 0:00:32.6]} 27... Rf8 {[%clk
0:02:08.1]} 28. Nd6 {[%clk 0:00:33.2]} 28... Rxf1+ {[%clk 0:02:07.6]} 29. Qxf1
{[%clk 0:00:34.1]} 29... Nc8 {[%clk 0:02:08.3]} 30. Nxc8 {[%clk 0:00:26]} 30...
Qxc8 {[%clk 0:02:09.2]} 31. Rb1 {[%clk 0:00:26]} 31... Kc6 {[%clk 0:02:07.2]}
32. Qd1 {[%clk 0:00:23.7]} 32... Qa6 {[%clk 0:02:04.3]} 33. h3 {[%clk
0:00:17.2]} 33... Qxa3 {[%clk 0:02:02.1]} 34. Qf3 {[%clk 0:00:16.9]} 34... Rc7
{[%clk 0:01:44.9]} 35. Qg4 {[%clk 0:00:15.1]} 35... Re7 {[%clk 0:01:44]} 36. Qf3
{[%clk 0:00:14.9]} 36... Re8 {[%clk 0:01:40.2]} 37. Kh2 {[%clk 0:00:13.7]} 37...
Rf8 {[%clk 0:01:39.1]} 38. Qg4 {[%clk 0:00:13.2]} 38... Qe7 {[%clk 0:01:37.9]}
39. Qd1 {[%clk 0:00:12.3]} 39... Qa3 {[%clk 0:01:28.7]} 40. Ra1 {[%clk
0:00:11.6]} 40... Qb3 {[%clk 0:01:17.5]} 41. Qg4 {[%clk 0:00:11.8]} 41... Re8
{[%clk 0:01:16]} 42. Qxg7 {[%clk 0:00:11.2]} 42... Qb6 {[%clk 0:01:11.9]} 43.
Rxa7 {[%clk 0:00:10.9]} 43... Rd8 {[%clk 0:01:08.3]} 44. Qe7 {[%clk 0:00:10.7]}
44... Rb8 {[%clk 0:00:55.7]} 45. Qxe6+ {[%clk 0:00:10.7]} 45... Kb5 {[%clk
0:00:53.2]} 46. Qe7 {[%clk 0:00:11.4]} 46... Kc6 {[%clk 0:00:43.7]} 47. Rd7
{[%clk 0:00:11.2]} 47... Kb5 {[%clk 0:00:39]} 48. Rxd5+ {[%clk 0:00:10.9]} 48...
Ka4 {[%clk 0:00:39]} 49. Rc5 {[%clk 0:00:09.7]} 49... Kb3 {[%clk 0:00:37.2]} 50.
Qf7 {[%clk 0:00:10.3]} 50... Qa6 {[%clk 0:00:36.1]} 51. Qf3 {[%clk 0:00:10.1]}
51... Rg8 {[%clk 0:00:33.2]} 52. d5 {[%clk 0:00:09.7]} 52... Qb6 {[%clk
0:00:30.7]} 53. Rc6 {[%clk 0:00:09.1]} 53... Qb8 {[%clk 0:00:23.1]} 54. Qe4
{[%clk 0:00:08.4]} 54... Qb5 {[%clk 0:00:20.1]} 55. e6 {[%clk 0:00:08.7]} 55...
Re8 {[%clk 0:00:18.2]} 56. e7 {[%clk 0:00:07]} 56... Qb8+ {[%clk 0:00:16.2]} 57.
d6 {[%clk 0:00:07.4]} 57... Qb5 {[%clk 0:00:15.3]} 58. Qxc4+ {[%clk 0:00:07.5]}
58... Qxc4 {[%clk 0:00:14.8]} 59. Rxc4 {[%clk 0:00:08.4]} 59... Kxc4 {[%clk
0:00:15.5]} 60. d7 {[%clk 0:00:08.9]} 60... Rxe7 {[%clk 0:00:15.9]} 61. d8=Q
{[%clk 0:00:09]} 61... Re3 {[%clk 0:00:16.8]} 62. Qd4+ {[%clk 0:00:08.7]} 1-0

[Event "*** Titled Tuesday Blitz"]
[Site "Chess.com"]
[Date "2020.10.20"]
[Round "4"]
[White "DrVitman"]
[Black "GoltsevDmitry2000"]
[Result "1/2-1/2"]
[WhiteElo "2472"]
[BlackElo "2677"]
[TimeControl "180+1"]
[EndTime "10:42:19 PDT"]
[Termination "Game drawn - insufficient material"]

1. e4 {[%clk 0:03:00.9]} 1... c5 {[%clk 0:03:00.1]} 2. Nc3 {[%clk 0:03:00.5]}
2... e6 {[%clk 0:03:01]} 3. Nge2 {[%clk 0:02:59.4]} 3... Nc6 {[%clk 0:03:00.7]}
4. g3 {[%clk 0:02:59.2]} 4... a6 {[%clk 0:02:59.8]} 5. Bg2 {[%clk 0:02:59.1]}
5... Qc7 {[%clk 0:02:52]} 6. O-O {[%clk 0:02:58.7]} 6... g6 {[%clk 0:02:51.7]}
7. d4 {[%clk 0:02:57.6]} 7... cxd4 {[%clk 0:02:52.1]} 8. Nxd4 {[%clk 0:02:58.5]}
8... Bg7 {[%clk 0:02:52.2]} 9. Be3 {[%clk 0:02:58.8]} 9... Nge7 {[%clk
0:02:50.8]} 10. Qd2 {[%clk 0:02:56.8]} 10... Ne5 {[%clk 0:02:49.3]} 11. b3
{[%clk 0:02:47.4]} 11... O-O {[%clk 0:02:48.5]} 12. h3 {[%clk 0:02:45.8]} 12...
d6 {[%clk 0:02:45.3]} 13. Nce2 {[%clk 0:02:37.7]} 13... b5 {[%clk 0:02:43.2]}
14. a4 {[%clk 0:02:33.7]} 14... Bd7 {[%clk 0:02:40.8]} 15. axb5 {[%clk 0:02:28]}
15... axb5 {[%clk 0:02:41.7]} 16. Bh6 {[%clk 0:02:25.3]} 16... f6 {[%clk
0:02:27.4]} 17. Bxg7 {[%clk 0:02:24.4]} 17... Kxg7 {[%clk 0:02:28.3]} 18. f4
{[%clk 0:02:19.2]} 18... Nf7 {[%clk 0:02:28.3]} 19. Rxa8 {[%clk 0:02:09.7]}
19... Rxa8 {[%clk 0:02:27.1]} 20. e5 {[%clk 0:02:10]} 20... d5 {[%clk
0:02:22.6]} 21. exf6+ {[%clk 0:02:09.7]} 21... Kxf6 {[%clk 0:02:23.5]} 22. Nxb5
{[%clk 0:01:46.8]} 22... Bxb5 {[%clk 0:02:10.2]} 23. Qd4+ {[%clk 0:01:46.2]}
23... e5 {[%clk 0:02:03.6]} 24. fxe5+ {[%clk 0:01:44.9]} 24... Kg7 {[%clk
0:02:04.2]} 25. Nf4 {[%clk 0:00:53]} 25... Qxe5 {[%clk 0:01:57]} 26. Qxe5+
{[%clk 0:00:37.5]} 26... Nxe5 {[%clk 0:01:56.3]} 27. Re1 {[%clk 0:00:38.4]}
27... Kf6 {[%clk 0:01:51.7]} 28. c4 {[%clk 0:00:32]} 28... Bd7 {[%clk
0:01:44.8]} 29. Bxd5 {[%clk 0:00:28.5]} 29... Ra3 {[%clk 0:01:34.8]} 30. c5
{[%clk 0:00:27.7]} 30... Bc6 {[%clk 0:01:19.7]} 31. Bxc6 {[%clk 0:00:22.7]}
31... N7xc6 {[%clk 0:01:19.4]} 32. Re3 {[%clk 0:00:23.3]} 32... Nd4 {[%clk
0:01:04.9]} 33. Kf2 {[%clk 0:00:18.5]} 33... Ra2+ {[%clk 0:01:02.8]} 34. Kf1
{[%clk 0:00:18.5]} 34... Nef3 {[%clk 0:00:55.5]} 35. c6 {[%clk 0:00:13.2]} 35...
Rc2 {[%clk 0:00:54.9]} 36. c7 {[%clk 0:00:13.1]} 36... Kf5 {[%clk 0:00:26.2]}
37. Nd5 {[%clk 0:00:13]} 37... Nd2+ {[%clk 0:00:23.4]} 38. Ke1 {[%clk
0:00:13.1]} 38... Ne4 {[%clk 0:00:20.2]} 39. c8=Q+ {[%clk 0:00:12]} 39... Rxc8
{[%clk 0:00:16.6]} 40. Ne7+ {[%clk 0:00:12.5]} 40... Ke5 {[%clk 0:00:13.5]} 41.
Nxc8 {[%clk 0:00:13.4]} 41... Nc2+ {[%clk 0:00:13.9]} 42. Ke2 {[%clk 0:00:13.8]}
42... Nxe3 {[%clk 0:00:14.3]} 43. Kxe3 {[%clk 0:00:14.7]} 43... Nxg3 {[%clk
0:00:15.2]} 44. b4 {[%clk 0:00:14.4]} 44... Nf5+ {[%clk 0:00:15.3]} 45. Kf3
{[%clk 0:00:14.8]} 45... Kd4 {[%clk 0:00:13.3]} 46. Nb6 {[%clk 0:00:14.8]} 46...
h5 {[%clk 0:00:12.5]} 47. Kf4 {[%clk 0:00:14.3]} 47... Nd6 {[%clk 0:00:06]} 48.
Nd7 {[%clk 0:00:14]} 48... Nf7 {[%clk 0:00:05.6]} 49. Nf8 {[%clk 0:00:13.1]}
49... g5+ {[%clk 0:00:05.4]} 50. Kf5 {[%clk 0:00:12.1]} 50... Kc4 {[%clk
0:00:05.6]} 51. Ne6 {[%clk 0:00:10.8]} 51... g4 {[%clk 0:00:05.9]} 52. hxg4
{[%clk 0:00:10.9]} 52... hxg4 {[%clk 0:00:05.4]} 53. Kxg4 {[%clk 0:00:11.8]}
53... Kxb4 {[%clk 0:00:05.6]} 1/2-1/2

[Event "*** Titled Tuesday Blitz"]
[Site "Chess.com"]
[Date "2020.10.20"]
[Round "4"]
[White "sotochess"]
[Black "dpopadic"]
[Result "1/2-1/2"]
[WhiteElo "2628"]
[BlackElo "2387"]
[TimeControl "180+1"]
[EndTime "10:42:22 PDT"]
[Termination "Game drawn by repetition"]

1. e4 {[%clk 0:03:00]} 1... c5 {[%clk 0:02:59.8]} 2. Nf3 {[%clk 0:02:59.2]} 2...
Nc6 {[%clk 0:02:59.8]} 3. d4 {[%clk 0:02:59.1]} 3... cxd4 {[%clk 0:02:59.4]} 4.
Nxd4 {[%clk 0:03:00]} 4... Nf6 {[%clk 0:02:59.4]} 5. Nc3 {[%clk 0:02:59.5]} 5...
e5 {[%clk 0:02:59.2]} 6. Ndb5 {[%clk 0:02:59.6]} 6... d6 {[%clk 0:02:59.3]} 7.
Bg5 {[%clk 0:02:59.1]} 7... a6 {[%clk 0:02:59.4]} 8. Na3 {[%clk 0:02:58.7]} 8...
b5 {[%clk 0:02:59.3]} 9. Nd5 {[%clk 0:02:57.6]} 9... Be7 {[%clk 0:02:59.3]} 10.
Bxf6 {[%clk 0:02:58]} 10... Bxf6 {[%clk 0:02:59.2]} 11. Nb1 {[%clk 0:02:58]}
11... Bg5 {[%clk 0:02:50.3]} 12. a4 {[%clk 0:02:57.1]} 12... b4 {[%clk
0:02:49.1]} 13. c3 {[%clk 0:02:54.2]} 13... Rb8 {[%clk 0:02:38.2]} 14. Nd2
{[%clk 0:02:52.9]} 14... Bxd2+ {[%clk 0:02:32.9]} 15. Qxd2 {[%clk 0:02:52.6]}
15... O-O {[%clk 0:02:32.6]} 16. Be2 {[%clk 0:02:49]} 16... a5 {[%clk
0:02:32.3]} 17. O-O {[%clk 0:02:44]} 17... Be6 {[%clk 0:02:32.1]} 18. Rad1
{[%clk 0:02:42.2]} 18... Kh8 {[%clk 0:02:27.7]} 19. Bb5 {[%clk 0:02:41.1]} 19...
Na7 {[%clk 0:02:20]} 20. Be2 {[%clk 0:02:37.5]} 20... bxc3 {[%clk 0:02:10.7]}
21. bxc3 {[%clk 0:02:31.4]} 21... Qd7 {[%clk 0:02:06.6]} 22. Qe3 {[%clk
0:02:24.8]} 22... Nc8 {[%clk 0:01:43.8]} 23. Bb5 {[%clk 0:02:23.2]} 23... Qb7
{[%clk 0:01:39.6]} 24. f4 {[%clk 0:02:15.3]} 24... f6 {[%clk 0:01:35]} 25. Kh1
{[%clk 0:02:09.3]} 25... Na7 {[%clk 0:01:26]} 26. c4 {[%clk 0:02:07.2]} 26...
Nc6 {[%clk 0:01:17.3]} 27. c5 {[%clk 0:02:01.7]} 27... dxc5 {[%clk 0:01:11.9]}
28. Qxc5 {[%clk 0:02:01.4]} 28... Nd4 {[%clk 0:01:11.1]} 29. fxe5 {[%clk
0:02:01.1]} 29... Nxb5 {[%clk 0:01:05]} 30. axb5 {[%clk 0:01:54]} 30... Rfc8
{[%clk 0:00:59.5]} 31. Qd6 {[%clk 0:01:51.2]} 31... Bxd5 {[%clk 0:00:57.5]} 32.
Rxd5 {[%clk 0:01:49.4]} 32... fxe5 {[%clk 0:00:55.7]} 33. Qxe5 {[%clk
0:01:49.2]} 33... Re8 {[%clk 0:00:54.3]} 34. Qd4 {[%clk 0:01:48.3]} 34... Qb6
{[%clk 0:00:44.7]} 35. Qc3 {[%clk 0:01:28.7]} 35... Rxe4 {[%clk 0:00:38.3]} 36.
Rd7 {[%clk 0:01:22.4]} 36... Rg4 {[%clk 0:00:35.9]} 37. h3 {[%clk 0:01:21.5]}
37... Rg6 {[%clk 0:00:33]} 38. Rf5 {[%clk 0:01:14.5]} 38... a4 {[%clk
0:00:28.4]} 39. Qa3 {[%clk 0:01:06.7]} 39... h6 {[%clk 0:00:21.3]} 40. Qxa4
{[%clk 0:01:06.1]} 40... Qe6 {[%clk 0:00:20.7]} 41. Qf4 {[%clk 0:00:57.6]} 41...
Qxd7 {[%clk 0:00:14.9]} 42. Qxb8+ {[%clk 0:00:57.2]} 42... Kh7 {[%clk
0:00:15.8]} 43. Qe5 {[%clk 0:00:52.1]} 43... Re6 {[%clk 0:00:13]} 44. Qf4 {[%clk
0:00:49.9]} 44... Re1+ {[%clk 0:00:10.5]} 45. Kh2 {[%clk 0:00:49.9]} 45... Rb1
{[%clk 0:00:09.5]} 46. Qe4 {[%clk 0:00:48.4]} 46... Qd6+ {[%clk 0:00:06.5]} 47.
Re5+ {[%clk 0:00:38.3]} 47... Qg6 {[%clk 0:00:06.5]} 48. Qxg6+ {[%clk
0:00:35.9]} 48... Kxg6 {[%clk 0:00:06.4]} 49. h4 {[%clk 0:00:36.5]} 49... Kf6
{[%clk 0:00:06.5]} 50. Rc5 {[%clk 0:00:36.4]} 50... g6 {[%clk 0:00:04.9]} 51.
Kh3 {[%clk 0:00:36.3]} 51... h5 {[%clk 0:00:05.1]} 52. g3 {[%clk 0:00:36.3]}
52... Rb2 {[%clk 0:00:05.1]} 53. Rc6+ {[%clk 0:00:35.9]} 53... Kf5 {[%clk
0:00:05.3]} 54. b6 {[%clk 0:00:35.5]} 54... Rb3 {[%clk 0:00:03.6]} 55. Kg2
{[%clk 0:00:34.1]} 55... Rb2+ {[%clk 0:00:03.8]} 56. Kf3 {[%clk 0:00:33.6]}
56... Rb3+ {[%clk 0:00:04]} 57. Kf2 {[%clk 0:00:34.1]} 57... Rb2+ {[%clk
0:00:04.2]} 58. Ke1 {[%clk 0:00:34.2]} 58... Rb3 {[%clk 0:00:02.3]} 59. Kf2
{[%clk 0:00:34]} 59... Rb2+ {[%clk 0:00:02.5]} 60. Kf3 {[%clk 0:00:33.9]} 60...
Rb3+ {[%clk 0:00:02.7]} 61. Kg2 {[%clk 0:00:34.8]} 61... Rb2+ {[%clk 0:00:02.8]}
62. Kh3 {[%clk 0:00:35.7]} 62... Rb3 {[%clk 0:00:02.9]} 63. Rd6 {[%clk
0:00:35.8]} 63... Rb2 {[%clk 0:00:02.6]} 64. Rd5+ {[%clk 0:00:35.8]} 64... Kf6
{[%clk 0:00:01.9]} 65. Rd6+ {[%clk 0:00:35.9]} 65... Kf5 {[%clk 0:00:02.2]} 66.
Rc6 {[%clk 0:00:35.8]} 1/2-1/2

[Event "*** Titled Tuesday Blitz"]
[Site "Chess.com"]
[Date "2020.10.20"]
[Round "4"]
[White "Ariadna_Atreides"]
[Black "dominikaf"]
[Result "1-0"]
[WhiteElo "2059"]
[BlackElo "2224"]
[TimeControl "180+1"]
[EndTime "10:42:26 PDT"]
[Termination "Ariadna_Atreides won on time"]

1. d4 {[%clk 0:03:00.9]} 1... d5 {[%clk 0:02:59.5]} 2. Nf3 {[%clk 0:03:01.1]}
2... c6 {[%clk 0:02:59]} 3. c4 {[%clk 0:02:59.9]} 3... e6 {[%clk 0:02:58.7]} 4.
Nbd2 {[%clk 0:02:46.4]} 4... f5 {[%clk 0:02:58.2]} 5. e3 {[%clk 0:02:38.8]} 5...
Nf6 {[%clk 0:02:58.2]} 6. Bd3 {[%clk 0:02:38.7]} 6... Bd6 {[%clk 0:02:58.2]} 7.
O-O {[%clk 0:02:36.8]} 7... O-O {[%clk 0:02:57.7]} 8. Ne5 {[%clk 0:02:36.1]}
8... Bxe5 {[%clk 0:02:48.7]} 9. dxe5 {[%clk 0:02:34.2]} 9... Ng4 {[%clk
0:02:48.7]} 10. Nf3 {[%clk 0:02:30.2]} 10... Nd7 {[%clk 0:02:47.2]} 11. b3
{[%clk 0:02:16.2]} 11... Ngxe5 {[%clk 0:02:44.3]} 12. Bb2 {[%clk 0:02:10.9]}
12... Nxf3+ {[%clk 0:02:41.6]} 13. Qxf3 {[%clk 0:02:09.6]} 13... Qg5 {[%clk
0:02:32.1]} 14. cxd5 {[%clk 0:01:44.9]} 14... exd5 {[%clk 0:02:29.2]} 15. b4
{[%clk 0:01:42.1]} 15... a6 {[%clk 0:02:14.4]} 16. a4 {[%clk 0:01:40.6]} 16...
Nf6 {[%clk 0:02:01.7]} 17. b5 {[%clk 0:01:33.7]} 17... axb5 {[%clk 0:01:58.9]}
18. axb5 {[%clk 0:01:32.5]} 18... Rxa1 {[%clk 0:01:57.9]} 19. Rxa1 {[%clk
0:01:33.4]} 19... Ne4 {[%clk 0:01:57.4]} 20. bxc6 {[%clk 0:01:31.8]} 20... bxc6
{[%clk 0:01:55.2]} 21. Ra7 {[%clk 0:01:29.5]} 21... Rf7 {[%clk 0:01:34.9]} 22.
Ra8 {[%clk 0:01:23.6]} 22... Qd8 {[%clk 0:01:34.3]} 23. Ba6 {[%clk 0:01:18.3]}
23... Nd6 {[%clk 0:00:41.3]} 24. Be5 {[%clk 0:00:56.5]} 24... Qb6 {[%clk
0:00:26]} 25. h3 {[%clk 0:00:46.8]} 25... Ra7 {[%clk 0:00:18.4]} 26. Rxa7 {[%clk
0:00:21.7]} 26... Qxa7 {[%clk 0:00:18.1]} 27. Bxc8 {[%clk 0:00:22.1]} 27... Nxc8
{[%clk 0:00:17.6]} 28. Qxf5 {[%clk 0:00:22.5]} 28... Ne7 {[%clk 0:00:15.9]} 29.
Qe6+ {[%clk 0:00:21.4]} 29... Kf8 {[%clk 0:00:16.3]} 30. Bd6 {[%clk 0:00:20.7]}
30... Qb7 {[%clk 0:00:16]} 31. Kh2 {[%clk 0:00:13.5]} 31... h6 {[%clk
0:00:14.8]} 32. f4 {[%clk 0:00:11.3]} 32... g5 {[%clk 0:00:13.6]} 33. f5 {[%clk
0:00:10.4]} 33... c5 {[%clk 0:00:05.3]} 34. f6 {[%clk 0:00:09.7]} 34... c4
{[%clk 0:00:04.6]} 35. fxe7+ {[%clk 0:00:09.2]} 35... Ke8 {[%clk 0:00:04.7]} 36.
Qg8+ {[%clk 0:00:07.5]} 36... Kd7 {[%clk 0:00:05.1]} 37. Qd8+ {[%clk 0:00:05.6]}
37... Ke6 {[%clk 0:00:04.9]} 38. e8=Q+ {[%clk 0:00:05.8]} 38... Kf5 {[%clk
0:00:05.8]} 39. Qf7+ {[%clk 0:00:05]} 39... Ke4 {[%clk 0:00:05.9]} 40. Qe6+
{[%clk 0:00:04.7]} 40... Kd3 {[%clk 0:00:05.8]} 41. Qf5+ {[%clk 0:00:05]} 41...
Ke2 {[%clk 0:00:05.5]} 42. Qe7 {[%clk 0:00:04.2]} 42... Qb3 {[%clk 0:00:03.9]}
43. Qf3+ {[%clk 0:00:04.2]} 43... Kd2 {[%clk 0:00:03.6]} 44. Qf2+ {[%clk
0:00:04.1]} 44... Kc1 {[%clk 0:00:02.9]} 45. Qh7 {[%clk 0:00:05]} 45... Qd3
{[%clk 0:00:01.7]} 46. Qxh6 {[%clk 0:00:04.9]} 46... c3 {[%clk 0:00:01.1]} 47.
Qg1+ {[%clk 0:00:05.1]} 47... Kb2 {[%clk 0:00:01.1]} 48. Qxg5 {[%clk 0:00:05.9]}
48... Qd2 {[%clk 0:00:01.8]} 49. Qg3 {[%clk 0:00:05.2]} 49... c2 {[%clk
0:00:02.7]} 50. Q3f2 {[%clk 0:00:05]} 50... c1=Q {[%clk 0:00:03.6]} 51. Be5+
{[%clk 0:00:04.6]} 51... Kc2 {[%clk 0:00:01.8]} 52. Qxd2+ {[%clk 0:00:05.5]}
52... Qxd2 {[%clk 0:00:02.5]} 53. h4 {[%clk 0:00:04]} 53... Kd3 {[%clk
0:00:03.4]} 54. Kh3 {[%clk 0:00:03.5]} 54... Ke4 {[%clk 0:00:04]} 55. Bf4 {[%clk
0:00:03]} 55... Qa5 {[%clk 0:00:02.9]} 56. Qf2 {[%clk 0:00:02.6]} 56... Qb6
{[%clk 0:00:02.2]} 57. Qf3+ {[%clk 0:00:03.5]} 57... Kd3 {[%clk 0:00:02.7]} 58.
h5 {[%clk 0:00:03.7]} 58... Qe6+ {[%clk 0:00:01.9]} 59. g4 {[%clk 0:00:04.6]}
1-0